bitfinex/quotes_BTCUSD_20250221
["timestamp","ask_amount","ask_price","bid_price","bid_amount"]
[1740170273093,0.157132,95461.0,95460.0,0.10264569]
[1740170273488,0.1589814,95463.0,95460.0,0.10264569]
[1740170273621,0.0018524,95463.0,95460.0,0.10264569]
[1740170273880,0.157132,95461.0,95460.0,0.10264569]
[1740170278637,0.15713,95462.0,95460.0,0.10264569]
[1740170278811,0.15713,95463.0,95460.0,0.10264569]
[1740170279016,0.157128,95464.0,95460.0,0.10264569]
[1740170279221,0.15,95469.0,95460.0,0.10264569]
[1740170279437,0.157132,95461.0,95460.0,0.10264569]
[1740170280058,0.001,95462.0,95460.0,0.10264569]
[1740170280264,0.157132,95461.0,95460.0,0.10264569]
[1740170280818,0.003,95469.0,95460.0,0.10264569]
[1740170281020,0.003,95469.0,95461.0,0.0797]
[1740170281164,0.003,95469.0,95462.0,0.10264569]
[1740170281384,0.209494,95468.0,95462.0,0.10264569]
[1740170281751,0.001,95464.0,95462.0,0.10264569]
[1740170281953,0.001,95464.0,95462.0,0.10164569]
[1740170282152,0.16786097,95470.0,95462.0,0.10164569]
[1740170282461,0.160119,95469.0,95462.0,0.10164569]
[1740170282900,0.001,95464.0,95462.0,0.10164569]
[1740170283052,0.002,95464.0,95462.0,0.10164569]
[1740170283254,0.001,95464.0,95462.0,0.10164569]
[1740170283966,0.160119,95469.0,95462.0,0.10164569]
[1740170284500,0.157121,95468.0,95462.0,0.10164569]
[1740170284701,0.003,95469.0,95462.0,0.10164569]
[1740170284910,0.209488,95471.0,95462.0,0.10164569]
[1740170285135,0.001,95464.0,95462.0,0.10164569]
[1740170285471,0.003,95469.0,95462.0,0.10164569]
[1740170285695,0.160119,95469.0,95462.0,0.10164569]
[1740170285909,0.006,95469.0,95462.0,0.10164569]
[1740170286482,0.003,95469.0,95462.0,0.10334649]
[1740170286789,0.0008504,95468.0,95462.0,0.10334649]
[1740170288302,0.0038504,95468.0,95462.0,0.10334649]
[1740170288871,0.0058504,95468.0,95462.0,0.10334649]
[1740170291448,0.157128,95463.0,95462.0,0.0017008]
[1740170291655,0.18747704,95463.0,95462.0,0.0017008]
[1740170291872,0.209496,95467.0,95462.0,0.0017008]
[1740170292201,0.157125,95466.0,95462.0,0.0017008]
[1740170292348,0.157127,95464.0,95462.0,0.0017008]
[1740170292589,0.157128,95463.0,95462.0,0.0017008]
[1740170292793,0.158128,95463.0,95462.0,0.0017008]
[1740170293381,0.001,95463.0,95462.0,0.10434649]
[1740170294135,0.157125,95465.0,95462.0,0.10434649]
[1740170294337,0.001,95464.0,95463.0,0.10264569]
[1740170294995,0.157125,95465.0,95463.0,0.10264569]
[1740170295180,0.209496,95467.0,95463.0,0.10164569]
[1740170295385,0.157127,95464.0,95463.0,0.10064569]
[1740170295919,0.158127,95464.0,95463.0,0.10064569]
[1740170296469,0.159127,95464.0,95463.0,0.10064569]
[1740170296787,0.002,95464.0,95463.0,0.10064569]
[1740170298034,0.002,95464.0,95463.0,0.18374569]
[1740170298462,0.002,95464.0,95463.0,0.24694353]
[1740170298622,0.002,95464.0,95463.0,0.24568654]
[1740170301251,0.002,95464.0,95463.0,0.23114569]
[1740170301428,0.157128,95463.0,95462.0,0.0017008]
[1740170302511,0.307128,95463.0,95462.0,0.0017008]
[1740170302722,0.33848542,95463.0,95462.0,0.0017008]
[1740170302893,0.308128,95463.0,95462.0,0.0017008]
[1740170303658,0.309128,95463.0,95462.0,0.0017008]
[1740170304232,0.307128,95463.0,95462.0,0.0017008]
[1740170304406,0.309128,95463.0,95462.0,0.0017008]
[1740170304729,0.310128,95463.0,95462.0,0.0017008]
[1740170305288,0.34048117,95463.0,95462.0,0.0017008]
[1740170308404,0.03335317,95463.0,95462.0,0.18504649]
[1740170308577,0.003,95463.0,95462.0,0.18504649]
[1740170309679,0.003,95463.0,95462.0,0.23054649]
[1740170310322,0.003,95463.0,95462.0,0.56641734]
[1740170311056,0.003,95463.0,95462.0,0.55187649]
[1740170311291,0.003,95463.0,95462.0,0.42567649]
[1740170311913,0.003,95463.0,95462.0,0.0017008]
[1740170312417,0.18333394,95463.0,95462.0,0.0017008]
[1740170317123,0.19137591,95463.0,95462.0,0.0017008]
[1740170319875,0.16104197,95463.0,95462.0,0.0017008]
[1740170320188,0.19136314,95463.0,95462.0,0.0017008]
[1740170320489,0.16104197,95463.0,95462.0,0.0017008]
[1740170320817,0.19135475,95463.0,95462.0,0.0017008]
[1740170323961,0.04135475,95463.0,95462.0,0.0017008]
[1740170324162,0.003,95463.0,95462.0,0.0017008]
[1740170326290,0.003,95463.0,95462.0,0.0777008]
[1740170327856,0.003,95463.0,95462.0,0.0017008]
[1740170332479,0.160128,95463.0,95462.0,0.0017008]
[1740170335222,0.003,95463.0,95462.0,0.0017008]
[1740170335426,0.160128,95463.0,95462.0,0.0017008]
[1740170338690,0.003,95463.0,95462.0,0.0017008]
[1740170338907,0.160128,95463.0,95462.0,0.0017008]
[1740170340185,0.310128,95463.0,95462.0,0.0017008]
[1740170340340,0.34044879,95463.0,95462.0,0.0017008]
[1740170341660,0.310128,95463.0,95462.0,0.0017008]
[1740170343469,0.153,95463.0,95462.0,0.0017008]
[1740170343635,0.003,95463.0,95462.0,0.0017008]
[1740170344765,0.160128,95463.0,95462.0,0.0017008]
[1740170345975,0.1904894,95463.0,95462.0,0.0017008]
[1740170346193,0.003,95463.0,95462.0,0.0017008]
[1740170347280,0.160128,95463.0,95462.0,0.0017008]
[1740170349126,0.003,95463.0,95462.0,0.10434649]
[1740170349933,0.160128,95463.0,95462.0,0.0017008]
[1740170350887,0.1905066,95463.0,95462.0,0.0017008]
[1740170351046,0.0333786,95463.0,95462.0,0.0017008]
[1740170351446,0.003,95463.0,95462.0,0.0017008]
[1740170353084,0.160128,95463.0,95462.0,0.0017008]
[1740170353288,0.19054202,95463.0,95462.0,0.0017008]
[1740170353686,0.003,95463.0,95462.0,0.0017008]
[1740170354292,0.19055496,95463.0,95462.0,0.0017008]
[1740170354874,0.19055496,95463.0,95459.0,0.001699]
[1740170354875,0.307158,95445.0,95434.0,0.0801]
[1740170355088,0.307158,95445.0,95426.0,0.0452]
[1740170355089,0.15,95444.0,95426.0,0.0452]
[1740170355298,0.157179,95432.0,95423.0,0.0801]
[1740170355534,0.157179,95432.0,95421.0,0.32133]
[1740170355535,0.03042696,95432.0,95416.0,0.0452]
[1740170355754,0.157195,95423.0,95420.0,0.11855259]
[1740170355955,0.157198,95421.0,95420.0,0.0159069]
[1740170356177,0.18760809,95421.0,95420.0,0.0159069]
[1740170356553,0.157198,95421.0,95420.0,0.0159069]
[1740170356810,0.16881728,95421.0,95420.0,0.0159069]
[1740170357242,0.31881728,95421.0,95420.0,0.0159069]
[1740170357379,0.35121279,95421.0,95420.0,0.0159069]
[1740170357587,0.32081728,95421.0,95420.0,0.0159069]
[1740170358382,0.32985728,95421.0,95420.0,0.0159069]
[1740170358755,0.32785728,95421.0,95420.0,0.0159069]
[1740170359305,0.32885728,95421.0,95420.0,0.0179069]
[1740170359515,0.32885728,95421.0,95415.0,0.0017032]
[1740170359516,0.15,95420.0,95419.0,0.0002968]
[1740170359712,0.307206,95416.0,95415.0,0.0017032]
[1740170360260,0.40985169,95416.0,95415.0,0.0017032]
[1740170360473,0.45965169,95416.0,95415.0,0.0017032]
[1740170360694,0.55380942,95416.0,95415.0,0.0017032]
[1740170360902,0.91430942,95416.0,95415.0,0.0017032]
[1740170361243,0.94461818,95416.0,95415.0,0.0017032]
[1740170362214,0.97696103,95416.0,95415.0,0.0017032]
[1740170362459,0.94665227,95416.0,95415.0,0.0017032]
[1740170362808,0.94465227,95416.0,95415.0,0.0017032]
[1740170363009,0.92665227,95416.0,95415.0,0.0017032]
[1740170363298,0.95365227,95416.0,95415.0,0.0017032]
[1740170363866,0.93589454,95416.0,95415.0,0.0017032]
[1740170364031,0.91055169,95416.0,95415.0,0.0017032]
[1740170367272,0.89055169,95416.0,95415.0,0.0017032]
[1740170367481,1.00368562,95416.0,95415.0,0.0017032]
[1740170368034,1.00788762,95416.0,95415.0,0.0017032]
[1740170368197,0.73483993,95416.0,95415.0,0.0017032]
[1740170368380,0.74387993,95416.0,95415.0,0.0017032]
[1740170368780,0.73483993,95416.0,95415.0,0.0017032]
[1740170368983,0.10713393,95416.0,95415.0,0.0017032]
[1740170369389,0.10713393,95416.0,95415.0,0.18684889]
[1740170369962,0.10013393,95416.0,95415.0,0.18684889]
[1740170370369,0.10313393,95416.0,95415.0,0.18684889]
[1740170370569,0.10313393,95416.0,95415.0,0.34405589]
[1740170370697,0.10013393,95416.0,95415.0,0.18684889]
[1740170371441,0.09313393,95416.0,95415.0,0.0017032]
[1740170371844,0.209605,95418.0,95415.0,0.0017032]
[1740170372077,0.157206,95416.0,95415.0,0.0017032]
[1740170372463,0.157206,95416.0,95415.0,0.0027032]
[1740170372663,0.157206,95416.0,95415.0,0.0037032]
[1740170372871,0.157206,95416.0,95415.0,0.0017032]
[1740170373275,0.004,95416.0,95415.0,0.0017032]
[1740170374688,0.161206,95416.0,95415.0,0.0017032]
[1740170376136,0.161206,95416.0,95401.0,0.0017002]
[1740170376137,0.15,95414.0,95401.0,0.0017002]
[1740170376339,0.157229,95402.0,95401.0,0.0017002]
[1740170376599,0.307229,95402.0,95401.0,0.0017002]
[1740170382257,0.15,95402.0,95401.0,0.0017002]
[1740170382629,0.15,95402.0,95382.0,0.0017032]
[1740170382630,0.3205,95409.0,95382.0,0.0003036]
[1740170382829,0.3205,95409.0,95391.0,0.08380254]
[1740170383031,0.3205,95409.0,95393.0,0.0473]
[1740170383234,0.3205,95409.0,95394.0,0.10264569]
[1740170383440,0.16786097,95410.0,95394.0,0.10264569]
[1740170383782,0.157224,95406.0,95394.0,0.10264569]
[1740170383962,0.157222,95407.0,95394.0,0.10264569]
[1740170384305,0.157219,95409.0,95394.0,0.10264569]
[1740170384507,0.157219,95408.0,95394.0,0.10264569]
[1740170384722,0.001,95409.0,95394.0,0.10264569]
[1740170384920,0.157228,95403.0,95394.0,0.10264569]
[1740170385239,0.16786097,95410.0,95394.0,0.10264569]
[1740170385443,0.157219,95409.0,95394.0,0.10264569]
[1740170385662,0.37748197,95410.0,95394.0,0.10264569]
[1740170385663,0.15722,95408.0,95394.0,0.10264569]
[1740170385924,0.157224,95405.0,95394.0,0.10264569]
[1740170386138,0.157227,95404.0,95394.0,0.10264569]
[1740170386288,0.16786097,95404.0,95393.0,0.0473]
[1740170386490,0.16786097,95404.0,95383.0,0.32133]
[1740170386491,0.15,95403.0,95384.0,0.0799]
[1740170386693,0.157246,95392.0,95384.0,0.18254569]
[1740170386898,0.359645,95399.0,95384.0,0.0799]
[1740170387140,0.15,95398.0,95384.0,0.0799]
[1740170387573,0.157244,95393.0,95384.0,0.0799]
[1740170387778,0.157246,95392.0,95384.0,0.0799]
[1740170387972,0.157246,95392.0,95384.0,0.08033691]
[1740170388517,0.157244,95394.0,95384.0,0.08033691]
[1740170388733,0.15,95399.0,95384.0,0.08033691]
[1740170388904,0.157245,95393.0,95384.0,0.08033691]
[1740170391461,0.157246,95392.0,95384.0,0.08033691]
[1740170391668,0.32510497,95394.0,95384.0,0.08033691]
[1740170391871,0.157244,95394.0,95384.0,0.08033691]
[1740170392384,0.15,95395.0,95384.0,0.08033691]
[1740170392705,0.307241,95395.0,95384.0,0.08033691]
[1740170393122,0.15,95395.0,95384.0,0.1829826]
[1740170393697,0.15,95399.0,95385.0,0.10264569]
[1740170394643,0.157223,95406.0,95385.0,0.10264569]
[1740170394994,0.209628,95408.0,95385.0,0.10264569]
[1740170395243,0.002,95399.0,95385.0,0.10264569]
[1740170395563,0.001,95399.0,95385.0,0.10264569]
[1740170395755,0.157223,95406.0,95385.0,0.10264569]
[1740170395960,0.160223,95406.0,95385.0,0.10264569]
[1740170396362,0.003,95406.0,95385.0,0.10264569]
[1740170396821,0.001,95399.0,95387.0,0.01454085]
[1740170396994,0.001,95399.0,95398.0,0.280736]
[1740170397164,0.001,95399.0,95398.0,0.22614569]
[1740170397604,0.002,95399.0,95398.0,0.22614569]
[1740170398009,0.001,95399.0,95398.0,0.22614569]
[1740170398330,0.002,95399.0,95398.0,0.22614569]
[1740170398531,0.001,95399.0,95398.0,0.22614569]
[1740170402828,0.001,95399.0,95398.0,0.54747569]
[1740170405667,0.001,95399.0,95398.0,0.42397569]
[1740170406041,0.001,95399.0,95392.0,0.0823]
[1740170406241,0.001,95399.0,95382.0,0.0003036]
[1740170406562,0.157247,95391.0,95384.0,0.1030826]
[1740170406761,0.157247,95392.0,95384.0,0.1030826]
[1740170406966,0.16786097,95394.0,95384.0,0.1030826]
[1740170407168,0.16786097,95394.0,95384.0,0.00043691]
[1740170407373,0.157257,95385.0,95384.0,0.00043691]
[1740170408318,0.33772603,95385.0,95384.0,0.00043691]
[1740170408501,0.34897269,95385.0,95384.0,0.00043691]
[1740170409208,0.35297269,95385.0,95384.0,0.00043691]
[1740170409709,0.36838049,95385.0,95384.0,0.00043691]
[1740170409926,0.37338049,95385.0,95384.0,0.00043691]
[1740170410126,0.36838049,95385.0,95384.0,0.00043691]
[1740170410334,0.36538049,95385.0,95384.0,0.00043691]
[1740170410493,0.45990924,95385.0,95384.0,0.00043691]
[1740170410917,0.45290924,95385.0,95384.0,0.00043691]
[1740170411117,0.36538049,95385.0,95384.0,0.00043691]
[1740170411327,0.157287,95367.0,95353.0,0.0458]
[1740170411658,0.157287,95367.0,95366.0,0.00183101]
[1740170412306,0.16786097,95376.0,95366.0,0.00183101]
[1740170412706,0.005,95367.0,95366.0,0.00183101]
[1740170412928,0.005,95367.0,95366.0,0.1044767]
[1740170413254,0.01,95367.0,95366.0,0.1044767]
[1740170414459,0.012,95367.0,95366.0,0.1044767]
[1740170415135,0.002,95367.0,95366.0,0.1044767]
[1740170415901,0.004,95367.0,95366.0,0.1044767]
[1740170416323,0.004,95367.0,95366.0,0.00183101]
[1740170417430,0.0637113,95367.0,95366.0,0.00183101]
[1740170417878,0.004,95367.0,95366.0,0.00183101]
[1740170418251,0.154,95367.0,95366.0,0.00183101]
[1740170418700,0.15,95367.0,95366.0,0.00183101]
[1740170419051,0.16,95367.0,95366.0,0.00183101]
[1740170419274,0.155,95367.0,95366.0,0.00183101]
[1740170419476,0.16,95367.0,95366.0,0.00183101]
[1740170419683,0.18541635,95367.0,95366.0,0.00183101]
[1740170419887,0.16,95367.0,95366.0,0.00183101]
[1740170420100,0.1904185,95367.0,95366.0,0.00183101]
[1740170420306,0.1854185,95367.0,95366.0,0.00183101]
[1740170420964,0.155,95367.0,95366.0,0.00183101]
[1740170421172,0.18541085,95367.0,95366.0,0.00183101]
[1740170421452,0.15,95367.0,95366.0,0.00183101]
[1740170421749,0.154,95367.0,95366.0,0.00183101]
[1740170422109,0.159,95367.0,95366.0,0.00183101]
[1740170422312,0.155,95367.0,95366.0,0.00183101]
[1740170422521,0.168,95367.0,95366.0,0.00183101]
[1740170422723,0.007,95367.0,95366.0,0.00183101]
[1740170423246,0.164,95367.0,95366.0,0.00183101]
[1740170424072,0.17304,95367.0,95366.0,0.00183101]
[1740170424435,0.16604,95367.0,95366.0,0.00183101]
[1740170424835,0.17304,95367.0,95366.0,0.00183101]
[1740170424978,0.16604,95367.0,95366.0,0.00183101]
[1740170425399,0.18004,95367.0,95366.0,0.00183101]
[1740170425667,0.17304,95367.0,95366.0,0.00183101]
[1740170425845,0.16604,95367.0,95366.0,0.00183101]
[1740170425994,0.18004,95367.0,95366.0,0.00183101]
[1740170426194,0.178287,95367.0,95366.0,0.00183101]
[1740170426416,0.187327,95367.0,95366.0,0.00183101]
[1740170428042,0.43079379,95367.0,95366.0,0.00183101]
[1740170428876,0.53343948,95367.0,95366.0,0.00183101]
[1740170429034,0.15,95350.0,95344.0,0.0777]
[1740170429382,0.157317,95349.0,95344.0,0.18047551]
[1740170429581,0.15,95351.0,95344.0,0.18047551]
[1740170429797,0.16786097,95360.0,95344.0,0.18047551]
[1740170430001,0.16786097,95360.0,95345.0,0.10264569]
[1740170430694,0.157302,95358.0,95345.0,0.10264569]
[1740170430889,0.16786097,95360.0,95345.0,0.10264569]
[1740170431086,0.1573,95359.0,95345.0,0.10264569]
[1740170431493,0.09346679,95358.0,95345.0,0.10264569]
[1740170431937,0.00800246,95357.0,95345.0,0.10264569]
[1740170432145,0.00800246,95357.0,95346.0,0.1295]
[1740170432370,0.00800246,95357.0,95347.0,0.10264569]
[1740170434062,0.01300246,95357.0,95347.0,0.10264569]
[1740170434275,0.01000246,95357.0,95347.0,0.10264569]
[1740170434680,0.00900246,95357.0,95347.0,0.10264569]
[1740170435133,0.01000246,95357.0,95348.0,0.00125847]
[1740170435342,0.002,95357.0,95349.0,0.10264569]
[1740170435913,0.001,95357.0,95349.0,0.10264569]
[1740170436116,0.0073275,95356.0,95349.0,0.10264569]
[1740170436317,0.001,95357.0,95349.0,0.10264569]
[1740170436518,0.0073275,95355.0,95349.0,0.10264569]
[1740170436717,0.15,95369.0,95349.0,0.10264569]
[1740170436903,0.00732799,95354.0,95349.0,0.10214569]
[1740170437100,0.001,95357.0,95349.0,0.10214569]
[1740170437321,0.002,95357.0,95349.0,0.10214569]
[1740170437839,0.001,95357.0,95349.0,0.10214569]
[1740170438040,0.001,95357.0,95349.0,0.10340407]
[1740170438269,0.001,95357.0,95350.0,0.078]
[1740170438412,0.00016,95367.0,95351.0,0.10264569]
[1740170438807,0.001,95357.0,95351.0,0.10264569]
[1740170439018,0.001851,95357.0,95351.0,0.10264569]
[1740170439263,0.002851,95357.0,95351.0,0.10264569]
[1740170440055,0.001851,95357.0,95351.0,0.10264569]
[1740170440819,0.002851,95357.0,95351.0,0.10264569]
[1740170441347,0.003851,95357.0,95351.0,0.10264569]
[1740170442137,0.00733227,95356.0,95351.0,0.10264569]
[1740170442525,0.0305949,95355.0,95351.0,0.10264569]
[1740170442675,0.00733227,95356.0,95351.0,0.10264569]
[1740170442893,0.003851,95357.0,95351.0,0.10264569]
[1740170443112,0.00733227,95355.0,95351.0,0.10264569]
[1740170443320,0.03060912,95354.0,95351.0,0.10264569]
[1740170443541,0.03794139,95356.0,95351.0,0.10264569]
[1740170443755,0.03060912,95355.0,95351.0,0.10264569]
[1740170443959,0.00733227,95355.0,95351.0,0.10264569]
[1740170444159,0.03060912,95354.0,95351.0,0.10264569]
[1740170444535,0.03060912,95356.0,95351.0,0.10264569]
[1740170444738,0.00733227,95353.0,95351.0,0.10264569]
[1740170444947,0.03060912,95352.0,95351.0,0.10264569]
[1740170445854,0.00733227,95352.0,95351.0,0.10264569]
[1740170446261,0.000851,95357.0,95351.0,0.10264569]
[1740170446557,0.03062055,95356.0,95351.0,0.10264569]
[1740170446756,0.03795282,95356.0,95352.0,0.0769]
[1740170446958,0.000851,95357.0,95353.0,0.10264569]
[1740170447634,0.001851,95357.0,95353.0,0.10264569]
[1740170447831,0.000851,95357.0,95353.0,0.10264569]
[1740170448162,0.002851,95357.0,95353.0,0.10264569]
[1740170448578,0.001851,95357.0,95353.0,0.10264569]
[1740170448932,0.03058967,95356.0,95353.0,0.10264569]
[1740170449124,0.001851,95357.0,95353.0,0.10264569]
[1740170449567,0.03059193,95356.0,95353.0,0.10264569]
[1740170449768,0.000851,95357.0,95353.0,0.10264569]
[1740170449990,0.00733227,95356.0,95353.0,0.10264569]
[1740170450189,0.001851,95357.0,95353.0,0.10264569]
[1740170450389,0.00733227,95356.0,95353.0,0.10264569]
[1740170450598,0.000851,95357.0,95353.0,0.10264569]
[1740170450808,0.03792977,95356.0,95353.0,0.10264569]
[1740170451054,0.0305975,95355.0,95353.0,0.10264569]
[1740170451251,0.0305975,95356.0,95353.0,0.10264569]
[1740170451481,0.0305975,95355.0,95349.0,0.0757]
[1740170451703,0.000851,95357.0,95350.0,0.01454085]
[1740170451931,0.000851,95357.0,95356.0,0.432305]
[1740170452163,0.000851,95357.0,95356.0,0.44684585]
[1740170452574,0.00016,95367.0,95366.0,0.157288]
[1740170452729,0.00016,95367.0,95366.0,1.41873252]
[1740170452928,0.00016,95367.0,95366.0,1.42855897]
[1740170453153,0.00016,95367.0,95366.0,1.26218654]
[1740170453355,0.00016,95367.0,95366.0,1.26018654]
[1740170453724,0.00016,95367.0,95366.0,1.26805129]
[1740170454078,0.00116,95367.0,95366.0,1.26805129]
[1740170455204,0.00016,95367.0,95366.0,1.27144022]
[1740170455917,0.00016,95367.0,95366.0,1.27244022]
[1740170456338,0.00016,95367.0,95366.0,1.27144022]
[1740170456478,0.00116,95367.0,95366.0,1.27444022]
[1740170456884,0.00216,95367.0,95366.0,1.27444022]
[1740170457357,0.00116,95367.0,95366.0,1.27144022]
[1740170457703,0.002,95367.0,95366.0,1.26289937]
[1740170457919,0.002,95367.0,95366.0,1.27744022]
[1740170458115,0.001,95367.0,95366.0,1.27444022]
[1740170458580,0.002,95367.0,95366.0,1.27744022]
[1740170458938,0.001,95367.0,95366.0,1.27444022]
[1740170459140,0.001,95367.0,95366.0,1.27544022]
[1740170459465,0.002,95367.0,95366.0,1.27544022]
[1740170459669,0.002,95367.0,95366.0,1.58272822]
[1740170462831,0.002,95367.0,95366.0,1.25164569]
[1740170463002,0.002,95367.0,95366.0,0.70864569]
[1740170463215,0.002851,95367.0,95366.0,0.70864569]
[1740170465281,0.002851,95367.0,95366.0,0.72318654]
[1740170466526,0.002851,95367.0,95366.0,0.57804569]
[1740170467299,0.002851,95367.0,95366.0,0.25664569]
[1740170467538,0.001851,95367.0,95366.0,0.25364569]
[1740170467885,0.001851,95367.0,95366.0,0.25464569]
[1740170468633,0.001851,95367.0,95366.0,0.25364569]
[1740170468841,0.000851,95367.0,95366.0,0.25364569]
[1740170469046,0.000851,95367.0,95366.0,0.25464569]
[1740170469248,0.000851,95367.0,95366.0,0.25264569]
[1740170469591,0.004851,95367.0,95366.0,0.25264569]
[1740170469722,0.007851,95367.0,95366.0,0.25264569]
[1740170469931,0.003851,95367.0,95366.0,0.25264569]
[1740170470130,0.007851,95367.0,95366.0,0.25264569]
[1740170471559,0.03840055,95367.0,95366.0,0.12900737]
[1740170471786,0.01527265,95367.0,95366.0,0.12900737]
[1740170475092,0.01527265,95367.0,95366.0,0.13070837]
[1740170476387,0.01527265,95367.0,95366.0,0.10962574]
[1740170477046,0.01527265,95367.0,95366.0,0.12003974]
[1740170484609,0.01527265,95367.0,95366.0,0.07858182]
[1740170486236,0.20309702,95367.0,95366.0,0.07858182]
[1740170487330,0.04581002,95367.0,95366.0,0.07858182]
[1740170487530,0.20309702,95367.0,95366.0,0.07858182]
[1740170488316,0.04581002,95367.0,95366.0,0.07858182]
[1740170488806,0.42939702,95367.0,95366.0,0.07858182]
[1740170489016,0.47789702,95367.0,95366.0,0.07858182]
[1740170490579,0.47789702,95367.0,95366.0,1e-08]
[1740170490836,0.48389702,95367.0,95366.0,1e-08]
[1740170490991,0.48689702,95367.0,95366.0,1e-08]
[1740170491365,0.49389702,95367.0,95366.0,1e-08]
[1740170491678,0.48689702,95367.0,95366.0,1e-08]
[1740170492081,0.157311,95352.0,95337.0,0.3214]
[1740170492282,0.157314,95351.0,95332.0,0.0463]
[1740170492535,0.00732627,95351.0,95332.0,0.0463]
[1740170492985,0.31464127,95351.0,95332.0,0.0463]
[1740170493181,0.18785509,95350.0,95332.0,0.0463]
[1740170493384,0.03053909,95349.0,95332.0,0.0463]
[1740170493603,0.18785709,95349.0,95332.0,0.0463]
[1740170493788,0.03053909,95348.0,95332.0,0.0463]
[1740170493987,0.03053909,95347.0,95332.0,0.0463]
[1740170494193,0.00732627,95347.0,95332.0,0.0463]
[1740170494368,0.03053909,95346.0,95332.0,0.0463]
[1740170494570,0.15,95351.0,95332.0,0.0463]
[1740170494815,0.004,95349.0,95332.0,0.0463]
[1740170495060,0.03454516,95348.0,95332.0,0.0463]
[1740170495270,0.03054516,95347.0,95332.0,0.0463]
[1740170495393,0.01032627,95347.0,95328.0,0.3214]
[1740170495592,0.00732627,95347.0,95328.0,0.3214]
[1740170495814,0.03053055,95346.0,95328.0,0.3214]
[1740170496022,0.15732,95347.0,95328.0,0.3214]
[1740170496230,0.00730454,95345.0,95328.0,0.3214]
[1740170496440,0.16786097,95340.0,95329.0,0.10264569]
[1740170496792,0.00730454,95339.0,95329.0,0.10264569]
[1740170498190,0.00830454,95339.0,95329.0,0.10264569]
[1740170498986,0.002,95339.0,95329.0,0.10264569]
[1740170499394,0.00730454,95338.0,95329.0,0.10264569]
[1740170501577,0.16786097,95340.0,95329.0,0.10264569]
[1740170501750,0.00727099,95337.0,95329.0,0.10264569]
[1740170501951,0.16786097,95340.0,95329.0,0.10264569]
[1740170502155,0.00727099,95336.0,95329.0,0.10264569]
[1740170502478,0.00727099,95335.0,95329.0,0.10264569]
[1740170502694,0.09372077,95361.0,95330.0,0.3214]
[1740170502955,0.001,95340.0,95335.0,0.0802]
[1740170503188,0.001,95340.0,95336.0,0.10264569]
[1740170503935,0.16786097,95350.0,95336.0,0.10264569]
[1740170504546,0.16786097,95350.0,95336.0,0.10364569]
[1740170504747,0.03053169,95349.0,95336.0,0.10364569]
[1740170505076,0.16886097,95350.0,95336.0,0.10264569]
[1740170505242,0.16986097,95350.0,95336.0,0.10264569]
[1740170505441,0.16886097,95350.0,95336.0,0.10264569]
[1740170505839,0.001,95349.0,95336.0,0.10264569]
[1740170506043,0.03054601,95348.0,95336.0,0.10264569]
[1740170506246,0.001,95349.0,95336.0,0.10264569]
[1740170507097,0.15051776,95350.0,95336.0,0.10264569]
[1740170507386,0.001,95348.0,95336.0,0.10264569]
[1740170508216,0.001,95349.0,95336.0,0.10264569]
[1740170508662,0.00729813,95348.0,95336.0,0.10264569]
[1740170508806,0.00829813,95348.0,95336.0,0.10264569]
[1740170510280,0.00829813,95348.0,95337.0,0.00125855]
[1740170510454,0.001,95348.0,95338.0,0.10264569]
[1740170510659,0.001,95348.0,95347.0,0.15732]
[1740170510939,0.001,95348.0,95347.0,0.72286492]
[1740170511151,0.001,95348.0,95347.0,1.26460654]
[1740170511358,0.001,95348.0,95347.0,1.43460654]
[1740170511560,0.001,95348.0,95347.0,1.46554116]
[1740170511783,0.09372077,95364.0,95353.0,0.15]
[1740170511987,0.09372077,95364.0,95363.0,0.31284823]
[1740170512158,0.0008508,95366.0,95364.0,0.01454085]
[1740170512159,0.09372077,95365.0,95364.0,0.01454085]
[1740170512368,0.09372077,95365.0,95364.0,1.05788654]
[1740170512570,0.10101698,95365.0,95364.0,1.05788654]
[1740170512781,0.09372077,95365.0,95364.0,1.05788654]
[1740170513409,0.04372077,95365.0,95364.0,0.75043021]
[1740170513556,0.04372077,95365.0,95364.0,0.73143021]
[1740170513775,0.04372077,95365.0,95364.0,0.75043021]
[1740170514205,0.04372077,95365.0,95364.0,0.90772221]
[1740170514434,0.04372077,95365.0,95364.0,0.88772221]
[1740170514985,0.04472077,95365.0,95364.0,0.90832101]
[1740170515359,0.04372077,95365.0,95364.0,0.90932101]
[1740170515717,0.04472077,95365.0,95364.0,0.91132101]
[1740170516583,0.04472077,95365.0,95364.0,0.90932101]
[1740170516742,0.002,95365.0,95364.0,0.91032101]
[1740170516951,0.002,95365.0,95364.0,0.89072221]
[1740170517560,0.0008505,95400.0,95366.0,0.099]
[1740170517781,0.0008505,95400.0,95366.0,0.36744436]
[1740170518132,0.0008505,95400.0,95366.0,0.38618654]
[1740170518461,0.0008505,95400.0,95366.0,0.54347454]
[1740170518648,0.0008505,95400.0,95366.0,1.40787454]
[1740170519040,0.001851,95367.0,95366.0,1.41087454]
[1740170519785,0.001851,95367.0,95366.0,1.45697454]
[1740170519995,0.002851,95367.0,95366.0,1.45897454]
[1740170520399,0.002851,95367.0,95366.0,1.24814569]
[1740170521535,0.002851,95367.0,95366.0,1.26268654]
[1740170522146,0.002851,95367.0,95366.0,1.11268654]
[1740170522294,0.002851,95367.0,95366.0,1.05204569]
[1740170522659,0.002851,95367.0,95366.0,0.50904569]
[1740170522870,0.002851,95367.0,95366.0,0.52358654]
[1740170523767,0.002851,95367.0,95366.0,0.42904569]
[1740170524732,0.001851,95367.0,95366.0,0.42604569]
[1740170525116,0.001851,95367.0,95366.0,0.42804569]
[1740170525721,0.001851,95367.0,95366.0,0.42604569]
[1740170525928,0.000851,95367.0,95366.0,0.42604569]
[1740170526123,0.000851,95367.0,95366.0,0.10664569]
[1740170526331,0.000851,95367.0,95366.0,0.10464569]
[1740170526607,0.001851,95367.0,95366.0,0.10764569]
[1740170527009,0.159138,95367.0,95366.0,0.003]
[1740170527156,0.159138,95367.0,95366.0,0.005]
[1740170527367,0.16657932,95367.0,95366.0,0.005]
[1740170527568,0.16657932,95367.0,95366.0,0.003]
[1740170527775,0.15,95366.0,95364.0,4.367e-05]
[1740170527987,0.30829,95365.0,95364.0,4.367e-05]
[1740170528190,0.31570767,95365.0,95364.0,4.367e-05]